[Event "Titled Tuesday Blitz December 14 2021"]
[White "Atabayev, Saparmyrat"]
[Black "Artemiev, Vladislav"]
[WhiteFideId "14000571"]
[BlackFideId "24101605"]
[WhiteElo "2483"]
[BlackElo "2830"]
[Result "0-1"]
[Round "06"]
[TimeControl "180+1"]
[Date "2021.12.14"]
[WhiteClock "0:00:09"]
[BlackClock "0:00:07"]

1. e4 {[%clk 0:03:00]}  g6 {[%clk 0:02:59]} 2. d4 {[%clk 0:03:00]}  Bg7 {[%clk 0:03:00]} 3. Nc3 {[%clk 0:03:00]}  d6 {[%clk 0:03:00]} 4. Nf3 {[%clk 0:03:01]}  Nf6 {[%clk 0:03:00]} 5. Be2 {[%clk 0:03:00]}  O-O {[%clk 0:03:00]} 6. O-O {[%clk 0:02:59]}  a6 {[%clk 0:02:58]} 7. e5 {[%clk 0:03:00]}  dxe5 {[%clk 0:02:48]} 8. dxe5 {[%clk 0:02:56]}  Ng4 {[%clk 0:02:48]} 9. Bf4 {[%clk 0:02:43]}  Nc6 {[%clk 0:02:47]} 10. Qd5 {[%clk 0:02:27]}  Be6 {[%clk 0:02:41]} 11. Qc5 {[%clk 0:02:25]}  Qe8 {[%clk 0:02:30]} 12. Ne4 {[%clk 0:02:02]}  b6 {[%clk 0:02:06]} 13. Qc3 {[%clk 0:02:03]}  Bd5 {[%clk 0:02:06]} 14. Ned2 {[%clk 0:01:59]}  Qd7 {[%clk 0:01:38]} 15. Bc4 {[%clk 0:01:44]}  b5 {[%clk 0:00:53]} 16. Bb3 {[%clk 0:01:30]}  Rad8 {[%clk 0:00:32]} 17. h3 {[%clk 0:01:25]}  b4 {[%clk 0:00:27]} 18. Qc5 {[%clk 0:01:09]}  Ngxe5 {[%clk 0:00:26]} 19. Nxe5 {[%clk 0:01:09]}  Bxe5 {[%clk 0:00:13]} 20. Bxe5 {[%clk 0:01:06]}  Nxe5 {[%clk 0:00:14]} 21. Rfe1 {[%clk 0:00:58]}  Nc6 {[%clk 0:00:14]} 22. Rad1 {[%clk 0:00:51]}  Bxb3 {[%clk 0:00:08]} 23. axb3 {[%clk 0:00:47]}  Qd5 {[%clk 0:00:06]} 24. Qc4 {[%clk 0:00:38]}  Qxc4 {[%clk 0:00:06]} 25. Nxc4 {[%clk 0:00:39]}  Rxd1 {[%clk 0:00:05]} 26. Rxd1 {[%clk 0:00:40]}  Rd8 {[%clk 0:00:05]} 27. Ra1 {[%clk 0:00:40]}  a5 {[%clk 0:00:05]} 28. c3 {[%clk 0:00:33]}  Rd5 {[%clk 0:00:02]} 29. cxb4 {[%clk 0:00:31]}  Nxb4 {[%clk 0:00:02]} 30. Nxa5 {[%clk 0:00:29]}  Rd2 {[%clk 0:00:02]} 31. Nc4 {[%clk 0:00:29]}  Rc2 {[%clk 0:00:02]} 32. Ra7 {[%clk 0:00:28]}  Nd5 {[%clk 0:00:02]} 33. g3 {[%clk 0:00:23]}  g5 {[%clk 0:00:03]} 34. Ra5 {[%clk 0:00:23]}  e6 {[%clk 0:00:03]} 35. Rc5 {[%clk 0:00:20]}  Kg7 {[%clk 0:00:03]} 36. Ra5 {[%clk 0:00:19]}  h5 {[%clk 0:00:03]} 37. Kf1 {[%clk 0:00:16]}  h4 {[%clk 0:00:04]} 38. Kg2 {[%clk 0:00:15]}  Kf6 {[%clk 0:00:04]} 39. gxh4 {[%clk 0:00:14]}  gxh4 {[%clk 0:00:04]} 40. Kf3 {[%clk 0:00:15]}  Rc1 {[%clk 0:00:04]} 41. Ra4 {[%clk 0:00:11]}  Rh1 {[%clk 0:00:03]} 42. Kg2 {[%clk 0:00:11]}  Rb1 {[%clk 0:00:04]} 43. Ra2 {[%clk 0:00:09]}  Nf4+ {[%clk 0:00:03]} 44. Kh2 {[%clk 0:00:09]}  Rf1 {[%clk 0:00:03]} 45. Ra8 {[%clk 0:00:07]}  Rxf2+ {[%clk 0:00:04]} 46. Kg1 {[%clk 0:00:08]}  Nxh3+ {[%clk 0:00:03]} 47. Kh1 {[%clk 0:00:08]}  Rc2 {[%clk 0:00:03]} 48. Rh8 {[%clk 0:00:09]}  Nf2+ {[%clk 0:00:03]} 49. Kg1 {[%clk 0:00:08]}  h3 {[%clk 0:00:02]} 50. Ne3 {[%clk 0:00:06]}  Re2 {[%clk 0:00:02]} 51. Rh6+ {[%clk 0:00:06]}  Kg5 {[%clk 0:00:02]} 52. Rxh3 {[%clk 0:00:07]}  Nxh3+ {[%clk 0:00:02]} 53. Kf1 {[%clk 0:00:08]}  Rxe3 {[%clk 0:00:02]} 54. Kg2 {[%clk 0:00:08]}  Kf4 {[%clk 0:00:03]} 55. Kh2 {[%clk 0:00:08]}  Rg3 {[%clk 0:00:04]} 56. Kh1 {[%clk 0:00:08]}  Ng5 {[%clk 0:00:05]} 57. Kh2 {[%clk 0:00:09]}  Nf3+ {[%clk 0:00:06]} 58. Kh1 {[%clk 0:00:09]}  Rg1# {[%clk 0:00:07]} 0-1


[Site "https://www.chess.com"]

[Event "Titled Tuesday Blitz December 14 2021"]
[White "Azadaliyev, Jahandar"]
[Black "Goryachkina, Aleksandra"]
[WhiteFideId "13425811"]
[BlackFideId "4147103"]
[WhiteElo "1795"]
[BlackElo "2441"]
[Result "1-0"]
[Round "06"]
[TimeControl "180+1"]
[Date "2021.12.15"]
[WhiteClock "0:01:14"]
[BlackClock "0:00:08"]

1. d4 {[%clk 0:03:00]}  Nf6 {[%clk 0:02:59]} 2. c4 {[%clk 0:03:01]}  e6 {[%clk 0:03:00]} 3. Nf3 {[%clk 0:03:00]}  b6 {[%clk 0:02:59]} 4. g3 {[%clk 0:03:00]}  Ba6 {[%clk 0:02:58]} 5. Nbd2 {[%clk 0:02:59]}  Bb7 {[%clk 0:02:57]} 6. Bg2 {[%clk 0:02:58]}  c5 {[%clk 0:02:54]} 7. O-O {[%clk 0:02:49]}  cxd4 {[%clk 0:02:54]} 8. Nxd4 {[%clk 0:02:50]}  Bxg2 {[%clk 0:02:50]} 9. Kxg2 {[%clk 0:02:50]}  Be7 {[%clk 0:02:43]} 10. b3 {[%clk 0:02:49]}  O-O {[%clk 0:02:42]} 11. Bb2 {[%clk 0:02:47]}  Qc8 {[%clk 0:02:33]} 12. Rc1 {[%clk 0:02:43]}  Qb7+ {[%clk 0:02:32]} 13. N2f3 {[%clk 0:02:42]}  Nc6 {[%clk 0:02:21]} 14. Nb5 {[%clk 0:02:35]}  Ne4 {[%clk 0:02:18]} 15. Qc2 {[%clk 0:02:24]}  f5 {[%clk 0:02:18]} 16. Rfd1 {[%clk 0:02:18]}  a6 {[%clk 0:02:09]} 17. Nbd4 {[%clk 0:02:16]}  Nxd4 {[%clk 0:02:03]} 18. Bxd4 {[%clk 0:02:17]}  b5 {[%clk 0:01:59]} 19. cxb5 {[%clk 0:02:04]}  axb5 {[%clk 0:01:58]} 20. Qc7 {[%clk 0:01:56]}  Rfb8 {[%clk 0:01:40]} 21. Bxg7 {[%clk 0:01:41]}  d5 {[%clk 0:00:41]} 22. Be5 {[%clk 0:01:37]}  Ba3 {[%clk 0:00:28]} 23. Rc6 {[%clk 0:01:34]}  Qxc7 {[%clk 0:00:27]} 24. Rxc7 {[%clk 0:01:35]}  Bf8 {[%clk 0:00:23]} 25. Nd4 {[%clk 0:01:31]}  Rb6 {[%clk 0:00:19]} 26. Rdc1 {[%clk 0:01:27]}  Rxa2 {[%clk 0:00:16]} 27. f3 {[%clk 0:01:20]}  Nc5 {[%clk 0:00:12]} 28. R1xc5 {[%clk 0:01:17]}  Bxc5 {[%clk 0:00:12]} 29. Rxc5 {[%clk 0:01:18]}  b4 {[%clk 0:00:11]} 30. Rc7 {[%clk 0:01:18]}  Rd2 {[%clk 0:00:09]} 31. Kf2 {[%clk 0:01:17]}  Ra6 {[%clk 0:00:09]} 32. Ke3 {[%clk 0:01:16]}  Rd1 {[%clk 0:00:08]} 33. Rg7+ {[%clk 0:01:14]}  Kf8 {[%clk 0:00:08]} 34. Rxh7 {[%clk 0:01:14]} 1-0


[Site "https://www.chess.com"]

[Event "Titled Tuesday Blitz December 14 2021"]
[White "Babazada, Khazar"]
[Black "Murzin, Volodar"]
[WhiteFideId "13413554"]
[BlackFideId "44155573"]
[WhiteElo "2302"]
[BlackElo "2481"]
[Result "1-0"]
[Round "06"]
[TimeControl "180+1"]
[Date "2021.12.14"]
[WhiteClock "0:00:53"]
[BlackClock "0:00:00"]

1. Nf3 {[%clk 0:03:00]}  Nf6 {[%clk 0:02:58]} 2. g3 {[%clk 0:03:01]}  g6 {[%clk 0:02:57]} 3. Bg2 {[%clk 0:03:02]}  Bg7 {[%clk 0:02:58]} 4. O-O {[%clk 0:03:01]}  O-O {[%clk 0:02:59]} 5. c4 {[%clk 0:03:00]}  d6 {[%clk 0:02:59]} 6. Nc3 {[%clk 0:03:00]}  Nbd7 {[%clk 0:02:59]} 7. d4 {[%clk 0:02:58]}  e5 {[%clk 0:02:59]} 8. e4 {[%clk 0:02:58]}  a6 {[%clk 0:02:59]} 9. h3 {[%clk 0:02:55]}  b5 {[%clk 0:02:59]} 10. cxb5 {[%clk 0:02:45]}  axb5 {[%clk 0:02:58]} 11. Re1 {[%clk 0:02:18]}  c6 {[%clk 0:02:55]} 12. dxe5 {[%clk 0:02:17]}  Nxe5 {[%clk 0:02:56]} 13. Nxe5 {[%clk 0:02:14]}  dxe5 {[%clk 0:02:56]} 14. Be3 {[%clk 0:02:15]}  Be6 {[%clk 0:02:56]} 15. Qc2 {[%clk 0:02:06]}  Qc8 {[%clk 0:02:45]} 16. a3 {[%clk 0:02:02]}  Bxh3 {[%clk 0:02:44]} 17. Bh1 {[%clk 0:01:53]}  Be6 {[%clk 0:02:42]} 18. Rac1 {[%clk 0:01:44]}  Ra6 {[%clk 0:02:39]} 19. Nb1 {[%clk 0:01:39]}  Ng4 {[%clk 0:02:18]} 20. Bc5 {[%clk 0:01:38]}  Rd8 {[%clk 0:02:17]} 21. Nd2 {[%clk 0:01:38]}  h5 {[%clk 0:02:09]} 22. f3 {[%clk 0:01:27]}  Nf6 {[%clk 0:01:57]} 23. Rcd1 {[%clk 0:01:27]}  Rd7 {[%clk 0:01:49]} 24. Be3 {[%clk 0:01:22]}  Qd8 {[%clk 0:01:28]} 25. Nb3 {[%clk 0:01:21]}  Bxb3 {[%clk 0:01:19]} 26. Qxb3 {[%clk 0:01:22]}  h4 {[%clk 0:01:19]} 27. g4 {[%clk 0:01:15]}  Nh7 {[%clk 0:01:15]} 28. Rxd7 {[%clk 0:01:14]}  Qxd7 {[%clk 0:01:15]} 29. Rd1 {[%clk 0:01:15]}  Qe8 {[%clk 0:01:14]} 30. Qc3 {[%clk 0:01:08]}  Bf6 {[%clk 0:01:11]} 31. Rd6 {[%clk 0:01:06]}  Bg5 {[%clk 0:01:07]} 32. Bf2 {[%clk 0:01:06]}  Nf8 {[%clk 0:00:42]} 33. Bg2 {[%clk 0:01:06]}  Kh7 {[%clk 0:00:21]} 34. Bf1 {[%clk 0:01:06]}  Ne6 {[%clk 0:00:14]} 35. Bxb5 {[%clk 0:01:06]}  cxb5 {[%clk 0:00:08]} 36. Rxa6 {[%clk 0:01:07]}  Nf4 {[%clk 0:00:09]} 37. Qc7 {[%clk 0:01:04]}  Nd3 {[%clk 0:00:05]} 38. Ra7 {[%clk 0:00:58]}  h3 {[%clk 0:00:00]} 39. Bg3 {[%clk 0:00:53]} 1-0


[Site "https://www.chess.com"]

[Event "Titled Tuesday Blitz December 14 2021"]
[White "Belyakov, Bogdan"]
[Black "Rustemov, Alexander"]
[WhiteFideId "24104795"]
[BlackFideId "4119002"]
[WhiteElo "2407"]
[BlackElo "2863"]
[Result "1/2-1/2"]
[Round "06"]
[TimeControl "180+1"]
[Date "2021.12.14"]
[WhiteClock "0:00:34"]
[BlackClock "0:00:10"]

1. e4 {[%clk 0:03:00]}  e6 {[%clk 0:02:58]} 2. d4 {[%clk 0:03:00]}  d5 {[%clk 0:02:58]} 3. Nc3 {[%clk 0:03:00]}  dxe4 {[%clk 0:02:57]} 4. Nxe4 {[%clk 0:03:01]}  Bd7 {[%clk 0:02:57]} 5. Nf3 {[%clk 0:03:00]}  Bc6 {[%clk 0:02:57]} 6. Bd3 {[%clk 0:03:00]}  Nd7 {[%clk 0:02:58]} 7. Qe2 {[%clk 0:02:55]}  Ngf6 {[%clk 0:02:58]} 8. Neg5 {[%clk 0:02:55]}  Qe7 {[%clk 0:02:56]} 9. Ne5 {[%clk 0:02:48]}  Nxe5 {[%clk 0:02:56]} 10. dxe5 {[%clk 0:02:49]}  Nd7 {[%clk 0:02:56]} 11. f4 {[%clk 0:02:42]}  h6 {[%clk 0:02:51]} 12. Nf3 {[%clk 0:02:42]}  g5 {[%clk 0:02:41]} 13. fxg5 {[%clk 0:02:40]}  Bg7 {[%clk 0:02:38]} 14. gxh6 {[%clk 0:02:35]}  Bxh6 {[%clk 0:02:34]} 15. Bxh6 {[%clk 0:02:35]}  Rxh6 {[%clk 0:02:34]} 16. Be4 {[%clk 0:02:32]}  Qb4+ {[%clk 0:02:29]} 17. Nd2 {[%clk 0:02:18]}  Qxb2 {[%clk 0:02:10]} 18. Rb1 {[%clk 0:02:08]}  Qxe5 {[%clk 0:02:10]} 19. Bxc6 {[%clk 0:02:05]}  bxc6 {[%clk 0:02:08]} 20. Qxe5 {[%clk 0:02:00]}  Nxe5 {[%clk 0:02:07]} 21. O-O {[%clk 0:02:01]}  O-O-O {[%clk 0:01:57]} 22. Nf3 {[%clk 0:01:53]}  Nxf3+ {[%clk 0:01:40]} 23. Rxf3 {[%clk 0:01:54]}  f5 {[%clk 0:01:38]} 24. Re1 {[%clk 0:01:49]}  Rd2 {[%clk 0:01:31]} 25. Rfe3 {[%clk 0:01:46]}  Kd7 {[%clk 0:01:29]} 26. Rd3+ {[%clk 0:01:44]}  Rxd3 {[%clk 0:01:28]} 27. cxd3 {[%clk 0:01:45]}  Kd6 {[%clk 0:01:24]} 28. g3 {[%clk 0:01:45]}  e5 {[%clk 0:01:22]} 29. h4 {[%clk 0:01:45]}  Kd5 {[%clk 0:01:16]} 30. Kf2 {[%clk 0:01:39]}  Kd4 {[%clk 0:01:16]} 31. Kf3 {[%clk 0:01:35]}  Re6 {[%clk 0:01:13]} 32. Rd1 {[%clk 0:01:31]}  c5 {[%clk 0:00:57]} 33. h5 {[%clk 0:01:31]}  Rh6 {[%clk 0:00:47]} 34. g4 {[%clk 0:01:31]}  fxg4+ {[%clk 0:00:46]} 35. Kxg4 {[%clk 0:01:32]}  e4 {[%clk 0:00:46]} 36. dxe4+ {[%clk 0:01:30]}  Kxe4 {[%clk 0:00:46]} 37. Kg5 {[%clk 0:01:28]}  Rh8 {[%clk 0:00:43]} 38. Rd7 {[%clk 0:01:25]}  Rc8 {[%clk 0:00:42]} 39. h6 {[%clk 0:01:25]}  c4 {[%clk 0:00:42]} 40. h7 {[%clk 0:01:25]}  c5 {[%clk 0:00:37]} 41. Kg6 {[%clk 0:01:19]}  c3 {[%clk 0:00:34]} 42. Rc7 {[%clk 0:01:19]}  Rh8 {[%clk 0:00:26]} 43. Rxc5 {[%clk 0:01:19]}  Kd3 {[%clk 0:00:26]} 44. Kg7 {[%clk 0:01:08]}  Rxh7+ {[%clk 0:00:21]} 45. Kxh7 {[%clk 0:01:09]}  c2 {[%clk 0:00:22]} 46. Kg6 {[%clk 0:00:54]}  Kd2 {[%clk 0:00:22]} 47. Rd5+ {[%clk 0:00:48]}  Kc3 {[%clk 0:00:21]} 48. Rc5+ {[%clk 0:00:48]}  Kb2 {[%clk 0:00:22]} 49. Rb5+ {[%clk 0:00:45]}  Kxa2 {[%clk 0:00:20]} 50. Rc5 {[%clk 0:00:45]}  Kb1 {[%clk 0:00:20]} 51. Rb5+ {[%clk 0:00:44]}  Ka2 {[%clk 0:00:20]} 52. Rc5 {[%clk 0:00:44]}  Kb2 {[%clk 0:00:20]} 53. Rb5+ {[%clk 0:00:45]}  Kc3 {[%clk 0:00:20]} 54. Rc5+ {[%clk 0:00:45]}  Kb3 {[%clk 0:00:18]} 55. Kf5 {[%clk 0:00:44]}  a5 {[%clk 0:00:17]} 56. Ke4 {[%clk 0:00:44]}  Kb2 {[%clk 0:00:12]} 57. Rb5+ {[%clk 0:00:42]}  Kc3 {[%clk 0:00:12]} 58. Rc5+ {[%clk 0:00:42]}  Kd2 {[%clk 0:00:12]} 59. Rd5+ {[%clk 0:00:40]}  Ke2 {[%clk 0:00:12]} 60. Rc5 {[%clk 0:00:40]}  Kd2 {[%clk 0:00:11]} 61. Rd5+ {[%clk 0:00:34]}  Kc3 {[%clk 0:00:11]} 62. Rc5+ {[%clk 0:00:34]}  Kd2 {[%clk 0:00:10]} 1/2-1/2


[Site "https://www.chess.com"]

[Event "Titled Tuesday Blitz December 14 2021"]
[White "Berezin, Viktor"]
[Black "Van den Dikkenberg, Erik"]
[WhiteFideId "14107872"]
[BlackFideId "1005880"]
[WhiteElo "2310"]
[BlackElo "2118"]
[Result "1/2-1/2"]
[Round "06"]
[TimeControl "180+1"]
[Date "2021.12.15"]
[WhiteClock "0:00:11"]
[BlackClock "0:00:08"]

1. d4 {[%clk 0:03:00]}  Nf6 {[%clk 0:02:56]} 2. Nf3 {[%clk 0:03:01]}  g6 {[%clk 0:02:46]} 3. g3 {[%clk 0:03:01]}  Bg7 {[%clk 0:02:46]} 4. Bg2 {[%clk 0:03:00]}  O-O {[%clk 0:02:45]} 5. O-O {[%clk 0:02:59]}  d6 {[%clk 0:02:45]} 6. a4 {[%clk 0:03:00]}  c6 {[%clk 0:02:45]} 7. Nc3 {[%clk 0:02:59]}  a6 {[%clk 0:02:44]} 8. h3 {[%clk 0:02:58]}  Nbd7 {[%clk 0:02:42]} 9. e4 {[%clk 0:02:58]}  e5 {[%clk 0:02:40]} 10. Re1 {[%clk 0:02:55]}  Qe7 {[%clk 0:02:39]} 11. Kh2 {[%clk 0:02:54]}  exd4 {[%clk 0:02:21]} 12. Nxd4 {[%clk 0:02:53]}  Ne5 {[%clk 0:02:16]} 13. Bf4 {[%clk 0:02:42]}  Bd7 {[%clk 0:02:02]} 14. Qd2 {[%clk 0:02:30]}  Nc4 {[%clk 0:01:57]} 15. Qe2 {[%clk 0:02:24]}  b5 {[%clk 0:01:33]} 16. b3 {[%clk 0:02:19]}  Ne5 {[%clk 0:01:31]} 17. Rad1 {[%clk 0:02:16]}  b4 {[%clk 0:01:30]} 18. Nb1 {[%clk 0:02:13]}  c5 {[%clk 0:01:29]} 19. Nf3 {[%clk 0:02:08]}  Nh5 {[%clk 0:01:23]} 20. Bg5 {[%clk 0:02:03]}  Nxf3+ {[%clk 0:01:20]} 21. Qxf3 {[%clk 0:02:02]}  Qxg5 {[%clk 0:01:21]} 22. Rxd6 {[%clk 0:02:03]}  Be6 {[%clk 0:01:17]} 23. Red1 {[%clk 0:02:00]}  Rad8 {[%clk 0:01:13]} 24. Qe2 {[%clk 0:01:55]}  Rxd6 {[%clk 0:01:10]} 25. Rxd6 {[%clk 0:01:53]}  Rd8 {[%clk 0:01:10]} 26. Qxa6 {[%clk 0:01:49]}  Rxd6 {[%clk 0:00:58]} 27. Qxd6 {[%clk 0:01:49]}  Bf8 {[%clk 0:00:48]} 28. Qd3 {[%clk 0:01:44]}  Qc1 {[%clk 0:00:47]} 29. Nd2 {[%clk 0:01:41]}  Nf6 {[%clk 0:00:46]} 30. a5 {[%clk 0:01:35]}  Qa1 {[%clk 0:00:44]} 31. a6 {[%clk 0:01:33]}  c4 {[%clk 0:00:43]} 32. Nxc4 {[%clk 0:01:26]}  Qxa6 {[%clk 0:00:43]} 33. e5 {[%clk 0:01:25]}  Nd7 {[%clk 0:00:42]} 34. f4 {[%clk 0:01:17]}  Bc5 {[%clk 0:00:37]} 35. g4 {[%clk 0:01:13]}  Qa1 {[%clk 0:00:35]} 36. Ne3 {[%clk 0:00:43]}  Qd4 {[%clk 0:00:30]} 37. Qxd4 {[%clk 0:00:36]}  Bxd4 {[%clk 0:00:30]} 38. Nd5 {[%clk 0:00:36]}  Nc5 {[%clk 0:00:27]} 39. Ne7+ {[%clk 0:00:30]}  Kg7 {[%clk 0:00:25]} 40. Nc6 {[%clk 0:00:30]}  Be3 {[%clk 0:00:24]} 41. Kg3 {[%clk 0:00:28]}  Nd7 {[%clk 0:00:22]} 42. Nxb4 {[%clk 0:00:27]}  Bd2 {[%clk 0:00:21]} 43. Nd3 {[%clk 0:00:26]}  Nb6 {[%clk 0:00:19]} 44. c4 {[%clk 0:00:23]}  Nxc4 {[%clk 0:00:18]} 45. bxc4 {[%clk 0:00:23]}  Bxc4 {[%clk 0:00:18]} 46. Nc5 {[%clk 0:00:19]}  g5 {[%clk 0:00:18]} 47. fxg5 {[%clk 0:00:17]}  Bxg5 {[%clk 0:00:17]} 48. Ne4 {[%clk 0:00:16]}  Be3 {[%clk 0:00:16]} 49. h4 {[%clk 0:00:14]}  Bd4 {[%clk 0:00:16]} 50. Kf4 {[%clk 0:00:14]}  Bd5 {[%clk 0:00:15]} 51. h5 {[%clk 0:00:12]}  Be6 {[%clk 0:00:15]} 52. g5 {[%clk 0:00:12]}  h6 {[%clk 0:00:14]} 53. gxh6+ {[%clk 0:00:12]}  Kxh6 {[%clk 0:00:14]} 54. Bf3 {[%clk 0:00:12]}  Bb2 {[%clk 0:00:12]} 55. Nf6 {[%clk 0:00:10]}  Bc1+ {[%clk 0:00:11]} 56. Kg3 {[%clk 0:00:09]}  Bg5 {[%clk 0:00:11]} 57. Ng8+ {[%clk 0:00:08]}  Kg7 {[%clk 0:00:10]} 58. Nf6 {[%clk 0:00:07]}  Bxf6 {[%clk 0:00:10]} 59. exf6+ {[%clk 0:00:08]}  Kxf6 {[%clk 0:00:11]} 60. Kf4 {[%clk 0:00:08]}  Ba2 {[%clk 0:00:09]} 61. Be4 {[%clk 0:00:09]}  Kg7 {[%clk 0:00:09]} 62. Kg5 {[%clk 0:00:09]}  f6+ {[%clk 0:00:09]} 63. Kh4 {[%clk 0:00:09]}  Bf7 {[%clk 0:00:08]} 64. Kg4 {[%clk 0:00:09]}  Kh6 {[%clk 0:00:08]} 65. Bg6 {[%clk 0:00:09]}  Bxg6 {[%clk 0:00:08]} 66. hxg6 {[%clk 0:00:10]}  Kxg6 {[%clk 0:00:08]} 67. Kf4 {[%clk 0:00:10]}  Kh5 {[%clk 0:00:08]} 68. Kf5 {[%clk 0:00:10]}  Kh6 {[%clk 0:00:08]} 69. Kxf6 {[%clk 0:00:11]} 1/2-1/2


[Site "https://www.chess.com"]

[Event "Titled Tuesday Blitz December 14 2021"]
[White "Chiu, Isaac"]
[Black "Urazayev, Arystanbek"]
[WhiteFideId "30900654"]
[BlackFideId "13709810"]
[WhiteElo "2117"]
[BlackElo "2321"]
[Result "1/2-1/2"]
[Round "06"]
[TimeControl "180+1"]
[Date "2021.12.15"]
[WhiteClock "0:00:19"]
[BlackClock "0:01:16"]

1. e4 {[%clk 0:03:00]}  c5 {[%clk 0:03:00]} 2. d4 {[%clk 0:02:56]}  cxd4 {[%clk 0:03:00]} 3. c3 {[%clk 0:02:57]}  Nf6 {[%clk 0:02:59]} 4. e5 {[%clk 0:02:57]}  Nd5 {[%clk 0:02:59]} 5. Nf3 {[%clk 0:02:57]}  Nc6 {[%clk 0:02:59]} 6. cxd4 {[%clk 0:02:58]}  d6 {[%clk 0:02:59]} 7. Nc3 {[%clk 0:02:58]}  Nxc3 {[%clk 0:02:59]} 8. bxc3 {[%clk 0:02:58]}  dxe5 {[%clk 0:02:59]} 9. d5 {[%clk 0:02:55]}  e4 {[%clk 0:02:59]} 10. dxc6 {[%clk 0:01:58]}  Qxd1+ {[%clk 0:02:59]} 11. Kxd1 {[%clk 0:01:59]}  exf3 {[%clk 0:02:59]} 12. Bb5 {[%clk 0:02:00]}  Kd8 {[%clk 0:03:00]} 13. Bf4 {[%clk 0:01:52]}  e5 {[%clk 0:02:27]} 14. Bxe5 {[%clk 0:01:50]}  Bg4 {[%clk 0:02:26]} 15. Kc2 {[%clk 0:01:33]}  fxg2 {[%clk 0:02:13]} 16. Rhd1+ {[%clk 0:01:26]}  Kc8 {[%clk 0:02:11]} 17. cxb7+ {[%clk 0:00:57]}  Kxb7 {[%clk 0:02:10]} 18. Rdb1 {[%clk 0:00:45]}  Bf5+ {[%clk 0:02:11]} 19. Bd3+ {[%clk 0:00:44]}  Kc6 {[%clk 0:02:08]} 20. Bxf5 {[%clk 0:00:44]}  Re8 {[%clk 0:02:07]} 21. Bd4 {[%clk 0:00:28]}  Bc5 {[%clk 0:02:01]} 22. Kd3 {[%clk 0:00:24]}  Bxd4 {[%clk 0:01:53]} 23. cxd4 {[%clk 0:00:25]}  Kd6 {[%clk 0:01:50]} 24. Be4 {[%clk 0:00:20]}  Re6 {[%clk 0:01:49]} 25. Bxg2 {[%clk 0:00:20]}  Rh6 {[%clk 0:01:50]} 26. h3 {[%clk 0:00:19]}  Rf6 {[%clk 0:01:49]} 27. Rb2 {[%clk 0:00:19]}  Rg6 {[%clk 0:01:45]} 28. Bf3 {[%clk 0:00:18]}  Rh6 {[%clk 0:01:44]} 29. Bg2 {[%clk 0:00:17]}  g6 {[%clk 0:01:44]} 30. Bf1 {[%clk 0:00:18]}  Rh4 {[%clk 0:01:43]} 31. Re1 {[%clk 0:00:17]}  Rf4 {[%clk 0:01:43]} 32. Re4 {[%clk 0:00:17]}  Rf6 {[%clk 0:01:43]} 33. Re3 {[%clk 0:00:18]}  Rc8 {[%clk 0:01:42]} 34. Bg2 {[%clk 0:00:18]}  Rc1 {[%clk 0:01:42]} 35. Ree2 {[%clk 0:00:17]}  Rg1 {[%clk 0:01:43]} 36. Be4 {[%clk 0:00:17]}  Rf4 {[%clk 0:01:42]} 37. Rbc2 {[%clk 0:00:17]}  f5 {[%clk 0:01:42]} 38. Rc6+ {[%clk 0:00:17]}  Kd7 {[%clk 0:01:42]} 39. Bd5 {[%clk 0:00:17]}  Rd1+ {[%clk 0:01:42]} 40. Kc2 {[%clk 0:00:17]}  Rfxd4 {[%clk 0:01:40]} 41. Bf3 {[%clk 0:00:16]}  R1d3 {[%clk 0:01:40]} 42. Rc3 {[%clk 0:00:16]}  Rxc3+ {[%clk 0:01:36]} 43. Kxc3 {[%clk 0:00:17]}  Ra4 {[%clk 0:01:37]} 44. Rd2+ {[%clk 0:00:18]}  Kc7 {[%clk 0:01:37]} 45. Bd5 {[%clk 0:00:18]}  Ra3+ {[%clk 0:01:37]} 46. Bb3 {[%clk 0:00:19]}  Ra5 {[%clk 0:01:37]} 47. Re2 {[%clk 0:00:19]}  Rc5+ {[%clk 0:01:36]} 48. Kd3 {[%clk 0:00:19]}  Kd6 {[%clk 0:01:35]} 49. Re6+ {[%clk 0:00:19]}  Kd7 {[%clk 0:01:35]} 50. Ra6 {[%clk 0:00:20]}  Rc7 {[%clk 0:01:35]} 51. Ba4+ {[%clk 0:00:19]}  Ke7 {[%clk 0:01:35]} 52. Bb3 {[%clk 0:00:19]}  Rb7 {[%clk 0:01:33]} 53. Ke3 {[%clk 0:00:19]}  Kf8 {[%clk 0:01:28]} 54. Kf4 {[%clk 0:00:19]}  Kg7 {[%clk 0:01:28]} 55. h4 {[%clk 0:00:19]}  Rb4+ {[%clk 0:01:28]} 56. Ke5 {[%clk 0:00:19]}  Rb7 {[%clk 0:01:23]} 57. Bd5 {[%clk 0:00:19]}  Rd7 {[%clk 0:01:20]} 58. f4 {[%clk 0:00:18]}  Kh6 {[%clk 0:01:18]} 59. Ra3 {[%clk 0:00:18]}  Kh5 {[%clk 0:01:17]} 60. Rh3 {[%clk 0:00:15]}  Kg4 {[%clk 0:01:18]} 61. Rh1 {[%clk 0:00:15]}  Re7+ {[%clk 0:01:17]} 62. Be6 {[%clk 0:00:15]}  Rb7 {[%clk 0:01:18]} 63. Rg1+ {[%clk 0:00:15]}  Kxh4 {[%clk 0:01:17]} 64. Kf6 {[%clk 0:00:15]}  Rb4 {[%clk 0:01:15]} 65. Kg7 {[%clk 0:00:12]}  Rxf4 {[%clk 0:01:13]} 66. Kxh7 {[%clk 0:00:13]}  g5 {[%clk 0:01:13]} 67. Kg6 {[%clk 0:00:12]}  g4 {[%clk 0:01:10]} 68. Bxf5 {[%clk 0:00:12]}  Ra4 {[%clk 0:01:09]} 69. Be6 {[%clk 0:00:08]}  Kh3 {[%clk 0:01:04]} 70. Kf6 {[%clk 0:00:05]}  Re4 {[%clk 0:01:00]} 71. Rxg4 {[%clk 0:00:05]}  Rxg4 {[%clk 0:01:01]} 72. Ke5 {[%clk 0:00:05]}  Kg3 {[%clk 0:01:01]} 73. Bxg4 {[%clk 0:00:05]}  Kxg4 {[%clk 0:01:02]} 74. Kd5 {[%clk 0:00:06]}  Kf5 {[%clk 0:01:03]} 75. Kc5 {[%clk 0:00:06]}  Ke6 {[%clk 0:01:04]} 76. Kb5 {[%clk 0:00:07]}  Kd7 {[%clk 0:01:05]} 77. Ka6 {[%clk 0:00:08]}  Kc8 {[%clk 0:01:05]} 78. Kxa7 {[%clk 0:00:09]}  Kc7 {[%clk 0:01:06]} 79. Ka6 {[%clk 0:00:09]}  Kc8 {[%clk 0:01:07]} 80. Ka5 {[%clk 0:00:10]}  Kb8 {[%clk 0:01:08]} 81. Ka4 {[%clk 0:00:10]}  Ka8 {[%clk 0:01:09]} 82. Ka3 {[%clk 0:00:11]}  Kb8 {[%clk 0:01:09]} 83. Kb3 {[%clk 0:00:12]}  Ka8 {[%clk 0:01:10]} 84. Kb2 {[%clk 0:00:13]}  Kb8 {[%clk 0:01:11]} 85. Ka1 {[%clk 0:00:14]}  Ka8 {[%clk 0:01:12]} 86. Kb1 {[%clk 0:00:15]}  Kb8 {[%clk 0:01:13]} 87. Kb2 {[%clk 0:00:16]}  Ka8 {[%clk 0:01:14]} 88. Kb1 {[%clk 0:00:17]}  Kb8 {[%clk 0:01:15]} 89. Ka1 {[%clk 0:00:18]}  Ka8 {[%clk 0:01:16]} 90. Kb1 {[%clk 0:00:19]} 1/2-1/2


[Site "https://www.chess.com"]